Cogmind - Beta 14 @@@ ROGUE MODE // 2024.11.08 @ 11:34:57 Player: Fangrelle Result: Destroyed self with Mini Grenade Launcher Performance ------------- Evolutions (0) 0 Regions Visited (2) 400 Robots Destroyed (22) 110 Value Destroyed (485) 485 Prototype IDs (1) 20 Alien Tech Used (0) 0 Bonus (0) 0 TOTAL SCORE: 1015 Bonus ------- None Cogmind --------- Core Integrity 0/250 Matter 6/300 Energy 100/100 System Corruption 1% Temperature Cool (10) Movement Core (350) Ox6 Location -10/Mines Parts ------- > --- POWER (1) -------- (None) > --- PROPULSION (2) --- (None) > --- UTILITY (2) ------ Large Storage Unit > --- WEAPON (2) ------- Mini Grenade Launcher > --- INVENTORY (15) --- Light Ion Engine Armored Wheel Armored Wheel Improved EM Shotgun Improved EM Shotgun Improved EM Shotgun Improved EM Shotgun Particle Gun Grenade Launcher Rocket Launcher Mini Grenade Launcher Mini Grenade Launcher Datajack Peak State ------------ > --- POWER ------------ Light Ion Engine > --- PROPULSION ------- Armored Wheel Armored Wheel > --- UTILITY ---------- Improved Heat Sink Large Storage Unit > --- WEAPON ----------- Improved EM Shotgun Improved EM Shotgun > --- INVENTORY -------- Light Ion Engine Armored Wheel Armored Wheel Improved EM Shotgun Particle Gun Grenade Launcher Mini Grenade Launcher Mini Grenade Launcher Mini Grenade Launcher Mini Grenade Launcher Datajack [Rating: 17] Favorites ----------- Power Ion Engine Engine Ion Engine Propulsion Light Treads Treads Light Treads Wheel Armored Wheel Utility Large Storage Unit Device Improved Heat Sink Storage Large Storage Unit Weapon Light Assault Rifle Energy Gun Improved EM Shotgun Ballistic Gun Light Assault Rifle Ballistic Cannon Light Cannon Launcher Grenade Launcher Special Melee Weapon Datajack Build | -11 -10 -10 ------- Run | Yrd Mat Min Slots Evolved . | . . . Power . | . . . Propulsion . | . . . Utility . | . . . Weapon . | . . . Parts Attached 25 | 7 16 2 Power 3 | 2 1 . Engine 3 | 2 1 . Core . | . . . Reactor . | . . . Propulsion 5 | 2 3 . Treads 2 | 2 . . Leg . | . . . Wheel 3 | . 3 . Hover . | . . . Flight . | . . . Utility 3 | 1 2 . Device 1 | . 1 . Storage 2 | 1 1 . Processor . | . . . Hackware . | . . . Protection . | . . . Artifact . | . . . Weapon 14 | 2 10 2 Energy Gun 3 | . 3 . Energy Cannon . | . . . Ballistic Gun 3 | 2 1 . Ballistic Cannon 1 | . 1 . Launcher 6 | . 4 2 Special Weapon . | . . . Impact Weapon . | . . . Slashing Weapon . | . . . Piercing Weapon . | . . . Special Melee Weapon 1 | . 1 . Unidentified Prototypes 1 | . 1 . Parts Lost 9 | . 4 5 Power 2 | . 1 1 Propulsion 4 | . 2 2 Utility 1 | . . 1 Weapon 2 | . 1 1 Highest Loss Streak 5 | . 4 5 To Critical Strikes . | . . . Average Slot Usage (%) 89 | . 89 90 Engine 13 | . 13 9 Treads 18 | . 20 . Wheel 6 | . 5 28 Device 2 | . 2 9 Storage 19 | . 19 14 Energy Gun 2 | . 1 14 Ballistic Gun 18 | . 19 . Launcher 5 | . 5 14 Peak Build Rating 17 | 6 17 17 Average Rating 7 | 4 7 14 On Entrance 7 | . 6 17 Naked Turns . | . . . Heaviest Build 33 | 13 33 30 Greatest Support 40 | 40 40 24 Greatest Overweight (x) 4 | 4 2 1 Average Overweight (x) . | 1 . . Largest Inventory Capacity 15 | 8 15 15 Average Capacity 13 | 7 14 15 Most Carried 13 | 5 12 13 Average Carried 7 | 3 7 12 Final Capacity 15 | 8 15 15 Final Carried 13 | 4 12 13 Class Distribution -------------------- 100% | Mutant Dominant Class ---------------- Mutant | -10/Materials Mutant | -10/Mines Resources | -11 -10 -10 ----------- Run | Yrd Mat Min Matter Collected 499 | 290 202 7 Remotely . | . . . Salvage Created 745 | 72 665 8 Parts 45 | 2 43 . Haulers Intercepted . | . . . Recyclers Shooed 1 | . 1 . Parts Field Recycled . | . . . Retrieved Matter . | . . . Parts Self-Destructed . | . . . Prevented . | . . . Kills | -11 -10 -10 ------- Run | Yrd Mat Min Combat Hostiles Destroyed 18 | . 12 6 Guns 11 | . 11 . AOE 7 | . 1 6 Classes Destroyed 8 | 1 6 1 Worker 1 | . 1 . Builder 2 | . 2 . Recycler 3 | 1 2 . Operator 2 | . 2 . Watcher 2 | . 2 . Swarmer 3 | . 3 . Grunt 9 | . 9 . Assembled 6 | . . 6 Best Kill Streak 6 | 1 6 6 Combat Bots Only 6 | . 5 6 Max Kills in Single Turn 4 | 1 2 4 Gunslinging . | . . . Exploded 4 | . 1 4 Melee . | . . . Uniques/NPCs Destroyed . | . . . Combat | -11 -10 -10 -------- Run | Yrd Mat Min Hostile Shots Fired 126 | . 96 30 Missed 42 | . 32 10 Damage Taken 1339 | . 859 480 Core 282 | . 144 138 Absorbed by Shields . | . . . Core Remaining (%) 100 | 100 . . Volleys Fired 82 | 5 73 4 Largest 2 | 2 2 1 Hottest 60 | 40 60 30 Shots Fired 153 | 10 139 4 Gun 139 | 10 129 . Cannon . | . . . Launcher 14 | . 10 4 Special . | . . . Kinetic 129 | 10 119 . Thermal 10 | . 10 . Explosive 14 | . 10 4 Electromagnetic . | . . . Robot Hit Streak 11 | 4 11 3 Robot Miss Streak 3 | 2 3 2 Penetration Max . | . . . Secondary Targets 1 | . 1 . Max Gunslinging Chain 1 | . 1 . Shots Hit Robots 95 | 7 86 2 Core Hits 55 | 2 41 12 Critical Kills . | . . . Critical Parts Destroyed 2 | . 2 . Critical Strikes 2 | . 2 . Destroy 2 | . 2 . Melee Attacks . | . . . Impact . | . . . Slashing . | . . . Piercing . | . . . Sneak Attacks . | . . . Combat Hostiles . | . . . Follow-up Attacks . | . . . Damage Inflicted 1786 | 76 1183 527 Guns 1026 | 76 950 . Cannons . | . . . Explosions 740 | . 230 510 Melee . | . . . Ramming 20 | . 3 17 Kinetic 955 | 76 879 . Thermal 71 | . 71 . Explosive 740 | . 230 510 Electromagnetic . | . . . Impact . | . . . Slashing . | . . . Piercing . | . . . Highest Corruption 1 | . 1 1 Average Corruption 1 | . 1 1 Corruption Purged . | . . . Corruption Blocked . | . . . Effects 4 | . 4 . Message Errors 1 | . 1 . Matter Fused 2 | . 2 . Parts Fused 1 | . 1 . Overload Shots . | . . . Overflow Damage 63 | . 27 36 Projectiles . | . . . Explosions 63 | . 27 36 Melee . | . . . Knockbacks . | . . . Impact . | . . . Kinetic . | . . . Secondary . | . . . Self-Inflicted Damage 236 | . 70 166 Shots 6 | . 2 4 Rammed 5 | . 1 4 Targets Rammed 5 | . 1 4 Kicked . | . . . Crushed . | . . . Highest Temperature 79 | . 79 10 Average Temperature 19 | . 20 10 Received Heat Transfer 463 | . 423 40 Siege Activations . | . . . Robots Corrupted . | . . . Combat Hostiles . | . . . Parts Fried . | . . . Impact Corruptions . | . . . Robots Melted . | . . . Combat Hostiles . | . . . Parts Melted . | . . . Heat Transferred 175 | . 175 . Parts Sabotaged . | . . . Parts Stolen . | . . . Parts Stripped . | . . . Power Chain Reactions . | . . . Alert | -11 -10 -10 ------- Run | Yrd Mat Min Peak Influence 302 | 5 302 113 Initial 113 | . 3 113 Average 106 | 1 131 109 Maximum Alert Level 1 | . 1 . Low Security (%) 74 | 100 67 100 Level 1 25 | . 32 . Level 2 . | . . . Level 3 . | . . . Level 4 . | . . . Level 5 . | . . . High Security . | . . . Max Security . | . . . Squads Dispatched 4 | . 4 . Investigation 2 | . 2 . Extermination . | . . . Reinforcement 2 | . 2 . Assault . | . . . Garrison . | . . . Intercept . | . . . Searches Triggered . | . . . Construction Impeded . | . . . Haulers Reinforced . | . . . Active Scanning Responses . | . . . Cargo Convoy Interrupts . | . . . Stealth | -11 -10 -10 --------- Run | Yrd Mat Min Distress Signals 2 | . 2 . Communications Jammed . | . . . Distress Signals . | . . . Times Spotted 31 | . 18 13 Peak Tracking Total 15 | . 4 15 Tactical Retreats 1 | . . 1 Traps | -11 -10 -10 ------- Run | Yrd Mat Min Traps Triggered . | . . . Indirectly . | . . . Trap Hack Attempts . | . . . Triggered . | . . . Disarmed . | . . . Reprogrammed . | . . . Reused . | . . . Traps Extracted . | . . . Installed . | . . . Triggered . | . . . Machines | -11 -10 -10 ---------- Run | Yrd Mat Min Machines Disabled 3 | . 3 . Max in Single Turn 2 | . 2 . Machines Repaired . | . . . Machines Dismantled . | . . . Machines Sabotaged . | . . . Overloaded Fab Kills . | . . . Hacking | -11 -10 -10 --------- Run | Yrd Mat Min Machines Accessed 4 | . 4 . Terminals 2 | . 2 . Fabricators . | . . . Repair Stations . | . . . Recycling Units 2 | . 2 . Scanalyzers . | . . . Garrison Access . | . . . Total Hacks 15 | . 15 . Successful 7 | . 7 . Failed 8 | . 8 . Catastrophic . | . . . Database Lockouts . | . . . Manual 13 | . 13 . Terminals 9 | . 9 . Fabricators . | . . . Repair Stations . | . . . Recycling Units 6 | . 6 . Scanalyzers . | . . . Garrison Access . | . . . Terminal Hacks . | . . . Fabricator Hacks . | . . . Repair Station Hacks . | . . . Recycling Unit Hacks 2 | . 2 . Report Inventory 1 | . 1 . Retrieve Components 1 | . 1 . Scanalyzer . | . . . Garrison Access Hacks . | . . . Unauthorized Hacks 5 | . 5 . Terminals 3 | . 3 . Botnet 1 | . 1 . Disrupt 1 | . 1 . Operators 1 | . 1 . Fabricators . | . . . Repair Stations . | . . . Recycling Units 2 | . 2 . Tunnel 2 | . 2 . Scanalyzers . | . . . Garrison Access . | . . . Data Cores Recovered . | . . . Used . | . . . Hacking Detections 2 | . 2 . Full Trace Events 2 | . 2 . Feedback Events 1 | . 1 . Corruption 1 | . 1 . Feedback Blocked . | . . . Robot Schematics Acquired . | . . . Robots Built . | . . . Authchips . | . . . Time . | . . . Total Robot Build Rating . | . . . Part Schematics Acquired . | . . . Parts Built . | . . . Authchips . | . . . Time . | . . . Total Part Build Rating . | . . . Parts Repaired . | . . . Time . | . . . Parts Recycled . | . . . Recycled Matter . | . . . Retrieved Matter . | . . . Retrieved Components 9 | . 9 . Parts Scanalyzed . | . . . Part Schematics Acquired . | . . . Parts Damaged . | . . . Bothacking | -11 -10 -10 ------------ Run | Yrd Mat Min Used RIF Installer . | . . . Robots Hacked . | . . . Non-combat . | . . . Combat . | . . . Robot Hacks Applied . | . . . Relay Couplers Released . | . . . Fabnet Peak Effective % . | . . . Robots Rewired . | . . . Allies Hacked . | . . . Hacks Repelled . | . . . Allies | -11 -10 -10 -------- Run | Yrd Mat Min Total Allies . | . . . Largest Group . | . . . Highest-Rated Group . | . . . Highest-Rated Ally . | . . . Total Orders . | . . . Ally Attacks . | . . . Total Damage . | . . . Kills . | . . . Allies Corrupted . | . . . Allies Melted . | . . . Intel | -11 -10 -10 ------- Run | Yrd Mat Min Robot Analysis Total . | . . . Derelict Logs Recovered 1 | . . 1 Drone Launches . | . . . Drone Recoveries . | . . . Exploration | -11 -10 -10 ------------- Run | Yrd Mat Min Turns Passed 727 | 131 565 31 Spaces Moved 308 | 63 229 16 Core 31 | 31 . . Treads 172 | 32 140 . Legs . | . . . Wheels 105 | . 89 16 Hover . | . . . Flight . | . . . Fastest Speed 50 | 50 105 90 Average Speed 143 | 162 140 103 Slowest Speed 250 | 250 160 105 Overloaded Moves . | . . . Propulsion Burnouts . | . . . Robots Hopped . | . . . Cave-ins Triggered . | . . . Exploration Rate (%) 14 | 4 32 6 Regions Visited 2 Branch Regions 1 Pre-discovered Areas 2 | . 2 . Known Exits Taken . | . . . Unknown Exits Taken 2 | 1 1 . Scrap Searched . | . . . Spaces Dug . | . . . Terrain Destroyed 71 | . 31 40 Melee . | . . . Projectile . | . . . AOE 71 | . 31 40 Terrain Rammed . | . . . Walls Destroyed . | . . . Machines Disabled . | . . . Actions | -11 -10 -10 --------- Run | Yrd Mat Min Total 453 | 80 346 27 Wait 1 | 1 . . Move 306 | 62 228 16 Hop . | . . . Pick Up 20 | 5 14 1 Fast Attach 13 | 4 9 . Attach 7 | 2 5 . Detach 3 | . 3 . Swap 5 | 1 2 2 Drop 11 | . 11 . Fire 82 | 5 73 4 Melee . | . . . Ram 5 | . 1 4 Kick . | . . . Crush . | . . . Escape Stasis . | . . . Rewire . | . . . Trap . | . . . Miscellaneous . | . . . Route ------- -11/Scrapyard -10/Materials -10/Mines History --------- Turn | Location | Event 9 | -11/Scrapyard | Discovered new exit (range 16) 132 | -11/Scrapyard | Entered Materials 300 | -10/Materials | Build established: Mutant 546 | -10/Materials | Core integrity fell below 50% 570 | -10/Materials | Lost 4 parts (1p2n1w) 597 | -10/Materials | Discovered new exit (range 15) 697 | -10/Materials | Entered Mines 698 | -10/Mines | Assembled infested the area 700 | -10/Mines | Learned Materials garrison access intel 703 | -10/Mines | Assisted by a Guerilla fighting off Assembled 704 | -10/Mines | Received a Rocket Launcher from a helpful Derelict 726 | -10/Mines | Core integrity fell below 20% 728 | -10/Mines | Destroyed self with Mini Grenade Launcher Last Messages --------------- 00705_ KO-A86(h) destroyed. 00706_ Acquired Rocket Launcher. 00712_ Slammed into as-76989. 00714_ Lgt. Ion Engine destroyed. 00714_ Slammed into as-76989. 00719_ Destroyed Asb. Hover Unit. 00719_ Imp. Heat Sink destroyed. 00719_ Destroyed Imp. Heat Sink. 00722_ Slammed into as-80000. 00723_ as-76989 destroyed. 00723_ as-80000 destroyed. 00725_ Acquired 7 matter. 00726_ Destroyed Asb. F-torch. 00726_ Mni. Grenade Launcher destroyed. 00727_ The unstable cave ceiling collapses. 00728_ Arm. Wheel destroyed. 00728_ as-73036 destroyed. 00728_ as-46625 destroyed. 00728_ as-06779 destroyed. 00728_ as-08940 destroyed. Map ----- +----------------------------------------------------+ | ?????????????????????????????????????????????????? | | ?????????????????????????????????????????????????? | | ?????????????????????????????????????????????????? | | ?????????????????????????????????????????????????? | | ?????????????????????????????????????????????????? | | ?????????????????????????????????????????????????? | | ?????????????????????????????????????????????????? | | ?????????????????????????????????????????????????? | | ?????????????????????????????????????????????????? | | ?????????????????????????????????????????????????? | | ?????????????????????????????????????????????????? | | ?????????????????????????####????????????????????? | | ????????????????????????? ##???????????????????? | | ????????????????????????? ##??????????????????? | | ????????????????????????# #??????????????????? | | ????????????????????????# ???????????????????? | | ???????????????????????## ???????????????????? | | ???????????????????????# a a#???????????????????? | | ???????????????????????# aa ????????????????????? | | ???????????????????????# ????????????????????? | | ???????????????????????# #????????????????????? | | ?????????????????????### % ##???????????????????? | | ?????????????????????# ##??????????????????? | | ?????????????????????# #??????????????????? | | ????????????????????## # #??????????????????? | | ????????????????????# @= #??????????????????? | | ??????????????????### #??????????????????? | | ?????????????????## ###??????????????????? | | ?????????????????# # #????????????????????? | | ?????????????????# #### ?????????????????? | | ?????????????????## #?####### #?????????????? | | ??????????????????## #??????????#?????????????? | | ???????????????????# #???????????????????????? | | ???????????????????## ###???????????????????????? | | ????????????????????####?????????????????????????? | | ?????????????????????????????????????????????????? | | ?????????????????????????????????????????????????? | | ?????????????????????????????????????????????????? | | ?????????????????????????????????????????????????? | | ?????????????????????????????????????????????????? | | ?????????????????????????????????????????????????? | | ?????????????????????????????????????????????????? | | ?????????????????????????????????????????????????? | | ?????????????????????????????????????????????????? | | ?????????????????????????????????????????????????? | | ?????????????????????????????????????????????????? | | ?????????????????????????????????????????????????? | | ?????????????????????????????????????????????????? | | ?????????????????????????????????????????????????? | | | +----------------------------------------------------+ Best States ------------- Heat Dissipation 39 Energy Generation 10 Energy Capacity 250 Matter Stores 300 Matter Capacity 300 Sight Range 16 Terrain Scan Density 10 Evasion (%) 50 Recoil Reduction 2 Item Schematics ----------------- None Robot Schematics ------------------ None Fabricated ------------ Nothing Alien Tech Used ----------------- None Achievements -------------- None Challenges ------------ None Game ------ Seed TowerFieldLauncher Manual? 0 Play Time 00:08:15 Cumulative 21.9 hours Start 2024.11.08 @ 11:27:46 End 2024.11.08 @ 11:34:57 Sessions 1 Manual Loads 0 Difficulty Rogue Special Mode None Game No. 43 Rogue 43 Adventurer 0 Explorer 0 Win Type - Total 0 Types 0/0/0/0/0/0/0/0/0 Lore% 19 Gallery% 22 Achievement% 28 Wizard Run 0 Options --------- Layout 0 ASCII 0 Keyboard 0 Movement Mouse Keybinds 0 Fullscreen 1 Font 24/Smallcaps Map View 91x25 Zoom Use 98% Tactical HUD 1 Map Filters NONE Filters NONE Steam 1 RUN: e1d09cd7-293a-4bb9-b7e0-c6eddca4608b